lending/lending_fUSD_20260411
["ID","MTS","AMOUNT","RATE_DAILY","PERIOD"]
[420271344,1775895043200,-151.0,0.0001,2]
[420271346,1775895043209,-500.0,0.0001,2]
[420271348,1775895043228,-500.0,0.0001,2]
[420271350,1775895043239,-500.0,0.0001,2]
[420271352,1775895043249,-500.0,0.0001,2]
[420271354,1775895043263,-500.0,0.0001,2]
[420271356,1775895043289,-500.0,0.0001,2]
[420271358,1775895043299,-500.0,0.0001,2]
[420271360,1775895043317,-500.0,0.0001,2]
[420271362,1775895043342,-500.0,0.0001,2]
[420271364,1775895043353,-151.0,0.0001,2]
[420271365,1775895043362,-1199.20597015,0.0001,2]
[420271366,1775895043374,-151.0,0.0001,2]
[420271367,1775895043399,-959.03676,0.0001,2]
[420271369,1775895043412,-959.03676,0.0001,2]
[420271371,1775895043422,-959.03676,0.0001,2]
[420271372,1775895043440,-959.03676,0.0001,2]
[420271373,1775895043449,-959.03676,0.0001,2]
[420271374,1775895043460,-959.03676,0.0001,2]
[420271375,1775895043470,-1130.12174736,0.0001,2]
[420271376,1775895043498,-221.65,0.00010046,2]
[420271377,1775895043510,-302.60081258,0.00010084,2]
[420271378,1775895043519,-1528.0,0.00010084,2]
[420271379,1775895043542,-1528.0,0.00010084,2]
[420271380,1775895043552,-1528.0,0.00010084,2]
[420271381,1775895043562,-1528.0,0.00010084,2]
[420271382,1775895043588,-1528.0,0.00010084,2]
[420271383,1775895043599,-1528.0,0.00010084,2]
[420271384,1775895043628,-1528.0,0.00010084,2]
[420271385,1775895043638,-1528.0,0.00010084,2]
[420271386,1775895043655,-1528.0,0.00010084,2]
[420271387,1775895043669,-1528.0,0.00010084,2]
[420271388,1775895043680,-1596.73894287,0.00010084,2]
[420271389,1775895043689,-152.0,0.00010084,2]
[420271390,1775895043719,-152.0,0.00010084,2]
[420271391,1775895043735,-152.0,0.00010084,2]
[420271392,1775895043750,-152.0,0.00010084,2]
[420271393,1775895043765,-156.63078307,0.00010084,2]
[420271394,1775895043787,-200.0,0.000101,2]
[420271395,1775895043796,-154.0,0.00010123,3]
[420271396,1775895043807,-5533.0,0.000102,3]
[420271397,1775895043821,-200.0,0.00010201,2]
[420271398,1775895043843,-166.66,0.00010207,2]
[420271399,1775895043853,-1002.90366701,0.00010218,2]
[420271400,1775895043876,-1500.0,0.00010218,2]
[420271401,1775895043885,-1044.94025023,0.00010218,2]
[420271402,1775895043908,-500.0,0.00010218,2]
[420271403,1775895043929,-393.16461267,0.00010218,2]
[420271404,1775895043939,-1500.0,0.00010218,2]
[420271405,1775895043948,-1000.0,0.00010218,2]
[420271406,1775895043958,-1500.0,0.00010218,2]
[420271407,1775895043971,-1500.0,0.00010218,2]
[420271408,1775895043981,-187.78006525,0.00010256,2]
[420271409,1775895043990,-300.23240325,0.00010256,2]
[420271410,1775895044001,-1288.0,0.0001027,5]
[420271411,1775895044013,-153.0,0.00010276,3]
[420271412,1775895044026,-200.0,0.00010303,2]
[420271413,1775895044040,-239.91351952,0.00010329,4]
[420271414,1775895044056,-926.0,0.00010353,2]
[420271415,1775895044065,-1218.0,0.00010353,2]
[420271416,1775895044077,-6024.0,0.00010353,2]
[420271417,1775895044096,-2472.0,0.00010353,2]
[420271418,1775895044106,-5533.0,0.000104,5]
[420271419,1775895044116,-200.0,0.00010406,2]
[420271420,1775895044127,-9999.99,0.00010475,2]
[420271421,1775895044146,-20287.91,0.00010475,2]
[420271422,1775895044155,-221.65,0.00010502,2]
[420271423,1775895044175,-166.66,0.00010523,2]
[420271424,1775895044185,-200.0,0.00010548,2]
[420271425,1775895044201,-1243.57659104,0.00010548,2]
[420271426,1775895044217,-155.96137184,0.00010548,2]
[420271427,1775895044230,-300.79793035,0.00010558,2]
[420271428,1775895044239,-1329.0,0.00010596,5]
[420271429,1775895044261,-3525.0,0.00010596,2]
[420271430,1775895044274,-622.0,0.00010596,2]
[420271431,1775895044287,-151.745,0.00010596,2]
[420271432,1775895044302,-1347.0,0.00010596,2]
[420271433,1775895044314,-221.67590812,0.000106,2]
[420271434,1775895044328,-5665.89337613,0.000106,2]
[420271435,1775895044345,-829.27875174,0.000106,2]
[420271436,1775895044680,-22655.67301245,0.000106,2]
[420271437,1775895044693,-170.98,0.00010663,2]
[420271438,1775895044705,-500.0,0.00010667,2]
[420271439,1775895044717,-500.0,0.00010667,2]
[420271440,1775895044728,-500.0,0.00010667,2]
[420271441,1775895044753,-500.0,0.00010667,2]
[420271442,1775895044762,-500.0,0.00010667,2]
[420271443,1775895044772,-151.0,0.00010697,2]
[420271444,1775895044782,-151.0,0.00010697,2]
[420271445,1775895044801,-151.0,0.00010697,2]
[420271446,1775895044811,-515027.3023855,0.000107,2]
[420271447,1775895044822,-39718.08596173,0.000107,2]
[420271459,1775895047876,-6019.0856248,0.000107,2]
[420271460,1775895049042,-1888.43791401,0.00010353,2]
[420271462,1775895050650,-502.0,0.00010353,2]
[420271463,1775895065741,500.0,8.945e-05,2]
[420271464,1775895071631,9500.01,9.042e-05,2]
[420271465,1775895071666,10000.01,9.042e-05,2]
[420271466,1775895071698,10000.01,9.042e-05,2]
[420271467,1775895071721,3550.7992,9.042e-05,2]
[420271471,1775895140675,194.8915,8.945e-05,2]
[420271472,1775895187884,678.0,8.945e-05,3]
[420271473,1775895201640,486.6027,8.945e-05,2]
[420271474,1775895248539,644.0,8.945e-05,3]
[420271475,1775895306252,157.0,8.945e-05,3]
[420271476,1775895307959,612.0,8.945e-05,3]
[420271477,1775895312087,153.0,8.945e-05,3]
[420271478,1775895349050,-300.0,8.957e-05,2]
[420271479,1775895349089,-1200.0,8.957e-05,2]
[420271480,1775895349128,-300.0,8.957e-05,2]
[420271481,1775895349170,-150.0,8.957e-05,2]
[420271482,1775895352305,175.32523568,8.957e-05,2]
[420271483,1775895362514,5924.68476432,8.932e-05,2]
[420271484,1775895362538,10000.01,8.932e-05,2]
[420271485,1775895362568,9751.30523568,8.932e-05,2]
[420271486,1775895364527,-500.0,8.958e-05,2]
[420271487,1775895366606,582.0,8.945e-05,3]
[420271488,1775895379226,-5000.0,8.958e-05,2]
[420271489,1775895394656,-250.0,8.958e-05,2]
[420271490,1775895394686,-500.0,8.958e-05,2]
[420271491,1775895394717,-464.82495513,8.958e-05,2]
[420271492,1775895394748,-600.0,8.958e-05,2]
[420271493,1775895394783,-340.19151843,8.958e-05,2]
[420271494,1775895394820,-217.79782608,8.958e-05,2]
[420271495,1775895394858,-500.0,8.958e-05,2]
[420271496,1775895394892,-500.0,8.958e-05,2]
[420271497,1775895394930,-500.0,8.958e-05,2]
[420271498,1775895394992,-600.0,8.958e-05,2]
[420271499,1775895395043,-500.0,8.958e-05,2]
[420271500,1775895395317,-257.44700458,8.958e-05,2]
[420271501,1775895395351,-500.0,8.958e-05,2]
[420271502,1775895395389,-889.94764753,8.958e-05,2]
[420271503,1775895395424,-889.94764753,8.958e-05,2]
[420271504,1775895395461,-889.94764753,8.958e-05,2]
[420271505,1775895395502,-889.94764753,8.958e-05,2]
[420271506,1775895395539,-475.58716307,8.958e-05,2]
[420271507,1775895395690,-414.36048446,8.958e-05,2]
[420271508,1775895395736,-889.94764753,8.958e-05,2]
[420271509,1775895395786,-889.94764753,8.958e-05,2]
[420271510,1775895395831,-889.94764753,8.958e-05,2]
[420271511,1775895395871,-889.94764753,8.958e-05,2]
[420271512,1775895395917,-889.94764753,8.958e-05,2]
[420271513,1775895396099,-889.94764753,8.958e-05,2]
[420271514,1775895396141,-889.94764753,8.958e-05,2]
[420271515,1775895396176,-889.94764753,8.958e-05,2]
[420271516,1775895396211,-889.94764753,8.958e-05,2]
[420271517,1775895396245,-889.94764753,8.958e-05,2]
[420271518,1775895396279,-210.58587717,8.958e-05,2]
[420271519,1775895396383,-679.36177036,8.958e-05,2]
[420271520,1775895396419,-889.94764753,8.958e-05,2]
[420271521,1775895396455,-889.94764753,8.958e-05,2]
[420271522,1775895396497,-889.94764753,8.958e-05,2]
[420271523,1775895396543,-889.94764753,8.958e-05,2]
[420271524,1775895396587,-631.75763151,8.958e-05,2]
[420271525,1775895397066,-258.19001602,8.958e-05,2]
[420271526,1775895397122,-889.94764753,8.958e-05,2]
[420271527,1775895397171,-889.94764753,8.958e-05,2]
[420271528,1775895397211,-889.94764753,8.958e-05,2]
[420271529,1775895397250,-889.94764753,8.958e-05,2]
[420271530,1775895397292,-889.94764753,8.958e-05,2]
[420271531,1775895397530,-889.94764753,8.958e-05,2]
[420271532,1775895397566,-889.94764753,8.958e-05,2]
[420271533,1775895397612,-889.94764753,8.958e-05,2]
[420271534,1775895397657,-889.94764753,8.958e-05,2]
[420271535,1775895397703,-889.94764753,8.958e-05,2]
[420271536,1775895397742,-210.58587717,8.958e-05,2]
[420271537,1775895397859,-679.36177036,8.958e-05,2]
[420271538,1775895397908,-889.94764753,8.958e-05,2]
[420271539,1775895397958,-889.94764753,8.958e-05,2]
[420271540,1775895398035,-889.94764753,8.958e-05,2]
[420271541,1775895398110,-889.94764753,8.958e-05,2]
[420271542,1775895398380,-631.75763151,8.958e-05,2]
[420271543,1775895398474,-258.19001602,8.958e-05,2]
[420271544,1775895398512,-889.94764753,8.958e-05,2]
[420271545,1775895398559,-889.94764753,8.958e-05,2]
[420271546,1775895398604,-889.94764753,8.958e-05,2]
[420271547,1775895398653,-917.75851152,8.958e-05,2]
[420271548,1775895398704,-917.75851152,8.958e-05,2]
[420271549,1775895400190,174.36,7.561e-05,2]
[420271550,1775895400427,-917.75851152,8.958e-05,2]
[420271551,1775895400475,-917.75851152,8.958e-05,2]
[420271552,1775895400521,-917.75851152,8.958e-05,2]
[420271553,1775895400569,-917.75851152,8.958e-05,2]
[420271554,1775895400609,-917.75851152,8.958e-05,2]
[420271555,1775895401090,-917.75851152,8.958e-05,2]
[420271556,1775895401145,-917.75851152,8.958e-05,2]
[420271557,1775895401207,-917.75851152,8.958e-05,2]
[420271558,1775895401262,-917.75851152,8.958e-05,2]
[420271559,1775895401317,-917.75851152,8.958e-05,2]
[420271560,1775895406320,-917.75851152,8.958e-05,2]
[420271561,1775895406353,-917.75851152,8.958e-05,2]
[420271562,1775895406389,-917.75851152,8.958e-05,2]
[420271563,1775895406422,-917.75851152,8.958e-05,2]
[420271564,1775895406457,-917.75851152,8.958e-05,2]
[420271565,1775895421227,300.0,8.957e-05,2]
[420271566,1775895482982,150.0,8.958e-05,2]
[420271567,1775895485032,300.0,8.958e-05,2]
[420271568,1775895489594,666.0,8.957e-05,3]
[420271569,1775895505023,500.0,8.958e-05,2]
[420271570,1775895505118,500.0,8.958e-05,2]
[420271571,1775895505183,500.0,8.958e-05,2]
[420271572,1775895505240,500.0,8.958e-05,2]
[420271573,1775895505318,500.0,8.958e-05,2]
[420271574,1775895505383,500.0,8.958e-05,2]
[420271575,1775895505463,500.0,8.958e-05,2]
[420271576,1775895505545,500.0,8.958e-05,2]
[420271577,1775895505620,500.0,8.958e-05,2]
[420271578,1775895505699,500.0,8.958e-05,2]
[420271579,1775895505783,500.0,8.958e-05,2]
[420271580,1775895505973,500.0,8.958e-05,2]
[420271581,1775895506081,500.0,8.958e-05,2]
[420271582,1775895506169,500.0,8.958e-05,2]
[420271583,1775895506245,500.0,8.958e-05,2]
[420271584,1775895506330,500.0,8.958e-05,2]
[420271585,1775895506418,500.0,8.958e-05,2]
[420271586,1775895506520,500.0,8.958e-05,2]
[420271587,1775895508729,500.0,8.958e-05,2]
[420271588,1775895508777,500.0,8.958e-05,2]
[420271589,1775895508847,0.01,8.958e-05,2]
[420271590,1775895508882,499.99,8.958e-05,2]
[420271591,1775895508947,500.0,8.958e-05,2]
[420271592,1775895509016,500.0,8.958e-05,2]
[420271593,1775895509098,500.0,8.958e-05,2]
[420271594,1775895509138,500.0,8.958e-05,2]
[420271595,1775895509261,260.36616174,8.958e-05,2]
[420271596,1775895509533,500.0,8.958e-05,2]
[420271597,1775895509711,500.0,8.958e-05,2]
[420271598,1775895509765,500.0,8.958e-05,2]
[420271599,1775895509833,500.0,8.958e-05,2]
[420271600,1775895509938,500.0,8.958e-05,2]
[420271601,1775895510003,500.0,8.958e-05,2]
[420271602,1775895517780,500.0,8.958e-05,2]
[420271603,1775895517833,500.0,8.958e-05,2]
[420271604,1775895517905,500.0,8.958e-05,2]
[420271605,1775895517949,500.0,8.958e-05,2]
[420271606,1775895517988,500.0,8.958e-05,2]
[420271607,1775895518033,500.0,8.958e-05,2]
[420271608,1775895518078,500.0,8.958e-05,2]
[420271609,1775895518121,500.0,8.958e-05,2]
[420271610,1775895518187,239.65383826,8.958e-05,2]
[420271611,1775895518220,260.34616174,8.958e-05,2]
[420271612,1775895518275,500.0,8.958e-05,2]
[420271613,1775895518326,500.0,8.958e-05,2]
[420271614,1775895518401,500.0,8.958e-05,2]
[420271615,1775895518448,500.0,8.958e-05,2]
[420271616,1775895518509,500.0,8.958e-05,2]
[420271617,1775895518560,500.0,8.958e-05,2]
[420271618,1775895518621,500.0,8.958e-05,2]
[420271619,1775895518695,500.0,8.958e-05,2]
[420271620,1775895520463,500.0,8.958e-05,2]
[420271621,1775895520505,500.0,8.958e-05,2]
[420271622,1775895520548,500.0,8.958e-05,2]
[420271623,1775895520602,500.0,8.958e-05,2]
[420271624,1775895520706,500.0,8.958e-05,2]
[420271625,1775895520777,500.0,8.958e-05,2]
[420271626,1775895520850,500.0,8.958e-05,2]
[420271627,1775895520913,500.0,8.958e-05,2]
[420271628,1775895520973,500.0,8.958e-05,2]
[420271629,1775895521011,500.0,8.958e-05,2]
[420271630,1775895521060,260.36616174,8.958e-05,2]
[420271631,1775895521131,479.29767652,8.958e-05,2]
[420271632,1775895521173,20.70232348,8.958e-05,2]
[420271633,1775895521303,500.0,8.958e-05,2]
[420271634,1775895521443,500.0,8.958e-05,2]
[420271635,1775895521489,500.0,8.958e-05,2]
[420271636,1775895521547,500.0,8.958e-05,2]
[420271637,1775895521616,500.0,8.958e-05,2]
[420271638,1775895521680,500.0,8.958e-05,2]
[420271639,1775895521729,500.0,8.958e-05,2]
[420271640,1775895521791,500.0,8.958e-05,2]
[420271641,1775895521854,500.0,8.958e-05,2]
[420271642,1775895521923,500.0,8.958e-05,2]
[420271643,1775895522010,500.0,8.958e-05,2]
[420271644,1775895522059,500.0,8.958e-05,2]
[420271645,1775895522108,500.0,8.958e-05,2]
[420271646,1775895522161,500.0,8.958e-05,2]
[420271647,1775895522213,500.0,8.958e-05,2]
[420271648,1775895536849,409.96903055,8.958e-05,2]
[420271649,1775895540506,500.0,8.958e-05,2]
[420271650,1775895540551,500.0,8.958e-05,2]
[420271651,1775895541150,500.0,8.958e-05,2]
[420271652,1775895541235,500.0,8.958e-05,2]
[420271653,1775895541276,69.33864597,8.958e-05,2]
[420271654,1775895541317,430.66135403,8.958e-05,2]
[420271655,1775895541367,500.0,8.958e-05,2]
[420271656,1775895541423,500.0,8.958e-05,2]
[420271657,1775895541511,500.0,8.958e-05,2]
[420271658,1775895541635,500.0,8.958e-05,2]
[420271659,1775895541726,500.0,8.958e-05,2]
[420271660,1775895541785,386.25514322,8.958e-05,2]
[420271661,1775895541881,500.0,8.958e-05,2]
[420271662,1775895541957,300.0,8.958e-05,2]
[420271663,1775895543330,500.0,8.958e-05,2]
[420271664,1775895543376,500.0,8.958e-05,2]
[420271665,1775895547098,849.0,8.958e-05,3]
[420271666,1775895566834,500.0,8.958e-05,2]
[420271667,1775895566899,300.21290321,8.958e-05,2]
[420271668,1775895566936,500.0,8.958e-05,2]
[420271669,1775895567810,1000.0,8.958e-05,2]
[420271670,1775895569042,1005.4579615,8.958e-05,2]
[420271671,1775895599709,-16005.0,8.959e-05,2]
[420271673,1775895613073,728.42263804,8.958e-05,3]
[420271674,1775895613097,78.57736196,8.958e-05,3]
[420271675,1775895613167,157.0,8.958e-05,3]
[420271676,1775895615220,500.0,8.958e-05,2]
[420271677,1775895615289,500.0,8.958e-05,2]
[420271678,1775895615363,500.0,8.958e-05,2]
[420271679,1775895615432,500.0,8.958e-05,2]
[420271680,1775895615486,500.0,8.958e-05,2]
[420271681,1775895615564,500.0,8.958e-05,2]
[420271682,1775895615643,500.0,8.958e-05,2]
[420271683,1775895615697,500.0,8.958e-05,2]
[420271684,1775895615748,500.0,8.958e-05,2]
[420271685,1775895615790,500.0,8.958e-05,2]
[420271686,1775895615833,500.0,8.958e-05,2]
[420271687,1775895615890,500.0,8.958e-05,2]
[420271688,1775895615974,500.0,8.958e-05,2]
[420271689,1775895616015,500.0,8.958e-05,2]
[420271690,1775895616069,500.0,8.958e-05,2]
[420271691,1775895616111,500.0,8.958e-05,2]
[420271692,1775895616160,500.0,8.958e-05,2]
[420271693,1775895616235,500.0,8.958e-05,2]
[420271694,1775895616284,500.0,8.958e-05,2]
[420271695,1775895616344,264.43263804,8.958e-05,2]
[420271696,1775895616388,235.56736196,8.958e-05,2]
[420271697,1775895628016,-146.31574841,8.959e-05,2]
[420271698,1775895628172,500.0,8.958e-05,2]
[420271699,1775895628325,500.0,8.958e-05,2]
[420271700,1775895628459,500.0,8.958e-05,2]
[420271701,1775895628572,500.0,8.958e-05,2]
[420271702,1775895628598,-5000.01,8.959e-05,2]
[420271703,1775895628665,500.0,8.958e-05,2]
[420271704,1775895628711,500.0,8.958e-05,2]
[420271705,1775895628781,558.41702557,8.958e-05,2]
[420271706,1775895631038,-5000.01,8.959e-05,2]
[420271707,1775895634218,-5000.01,8.959e-05,2]
[420271708,1775895650658,6206.02561247,8.926e-05,2]
[420271709,1775895650690,10000.01,8.926e-05,2]
[420271710,1775895650716,10000.01,8.926e-05,2]
[420271711,1775895650751,10000.01,8.926e-05,2]
[420271712,1775895650775,10000.01,8.926e-05,2]
[420271713,1775895650804,10000.01,8.926e-05,2]
[420271714,1775895650848,10000.01,8.926e-05,2]
[420271715,1775895650873,10000.01,8.926e-05,2]
[420271718,1775895667830,2152.632826,7.945e-05,2]
[420271719,1775895707339,4740.5,4.397e-05,2]
[420271720,1775895707380,4740.5,4.628e-05,2]
[420271721,1775895707435,519.01,4.859e-05,2]
[420271722,1775895707460,4221.49,4.859e-05,2]
[420271723,1775895707516,778.52,5.091e-05,2]
[420271724,1775895707543,3961.98,5.091e-05,2]
[420271725,1775895707690,1038.03,5.322e-05,2]
[420271726,1775895707747,3702.47,5.322e-05,2]
[420271727,1775895707886,1297.54,5.553e-05,2]
[420271728,1775895707918,3442.96,5.553e-05,2]
[420271729,1775895708005,4740.5,5.785e-05,2]
[420271730,1775895708081,4740.5,6.016e-05,2]
[420271731,1775895708279,4740.5,6.248e-05,2]
[420271732,1775895708524,4740.5,6.479e-05,2]
[420271733,1775895708774,4740.5,6.71e-05,2]
[420271734,1775895708929,4740.5,6.942e-05,2]
[420271735,1775895709138,4740.5,7.173e-05,2]
[420271736,1775895709334,4740.5,7.405e-05,2]
[420271737,1775895709552,4740.5,7.636e-05,2]
[420271738,1775895709768,4740.5,7.867e-05,2]
[420271739,1775895709946,4740.5,8.099e-05,2]
[420271740,1775895710146,259.51,8.33e-05,2]
[420271741,1775895710180,4480.99,8.33e-05,2]
[420271746,1775895719498,804.59,0.0001,30]
[420271747,1775895725915,767.0,8.33e-05,3]
[420271748,1775895728567,25522.646209,7.945e-05,2]
[420271749,1775895731648,166.0,8.33e-05,3]
[420271750,1775895788333,968.0,8.33e-05,3]
[420271751,1775895799907,166.66,8.469e-05,2]
[420271755,1775895866753,7364.228058,8.178e-05,2]
[420271756,1775895907932,920.0,8.178e-05,3]
[420271757,1775895942041,154.0,8.178e-05,3]
[420271758,1775895956804,-259.51,8.562e-05,2]
[420271759,1775895958311,-519.02,8.562e-05,2]
[420271760,1775895958385,-1038.04,8.562e-05,2]
[420271761,1775895958849,-2076.08,8.562e-05,2]
[420271762,1775895962763,-847.85,8.562e-05,2]
[420271763,1775895967536,874.0,8.178e-05,3]
[420271764,1775895972561,-272.0,8.562e-05,2]
[420271765,1775895987924,-198.39676812,8.616e-05,2]
[420271766,1775896003209,-250.0,8.616e-05,2]
[420271767,1775896021538,-234.0,8.626e-05,2]
[420271768,1775896025823,830.0,8.178e-05,3]
[420271769,1775896034046,-1200.0,8.67e-05,2]
[420271770,1775896034089,-300.0,8.67e-05,2]
[420271771,1775896049104,-4807.40813667,8.671e-05,2]
[420271772,1775896064346,-1500.0,8.7e-05,3]
[420271773,1775896085347,789.0,8.178e-05,3]
[420271774,1775896091720,-250.0,8.717e-05,2]
[420271775,1775896106776,-3685.078,8.78e-05,2]
[420271776,1775896106822,-168.613,8.78e-05,2]
[420271777,1775896121952,-4740.5,8.793e-05,2]
[420271778,1775896137150,-3100.0,8.8e-05,3]
[420271779,1775896198162,-3169.98,8.819e-05,2]
[420271780,1775896198196,-166.66,8.819e-05,2]
[420271781,1775896198229,-250.0,8.839e-05,2]
[420271782,1775896198260,-500.0,8.859e-05,2]
[420271783,1775896198293,-279.5677,8.859e-05,2]
[420271784,1775896198543,-1267.5946,8.859e-05,2]
[420271785,1775896198583,-2764.8208,8.9e-05,3]
[420271786,1775896198637,-1935.1792,8.9e-05,3]
[420271787,1775896198684,-150.0,8.925e-05,2]
[420271788,1775896198739,-2461.28721247,8.926e-05,2]
[420271789,1775896199028,-907.07717506,8.926e-05,2]
[420271790,1775896199101,-150.99,8.926e-05,2]
[420271791,1775896199905,10000.01,8.8e-05,2]
[420271792,1775896199931,10000.01,8.8e-05,2]
[420271793,1775896199956,10000.01,8.8e-05,2]
[420271794,1775896199981,10000.01,8.8e-05,2]
[420271795,1775896200006,10000.01,8.8e-05,2]
[420271796,1775896200032,10000.01,8.8e-05,2]
[420271797,1775896200059,10000.01,8.8e-05,2]
[420271798,1775896200087,10000.01,8.8e-05,2]
[420271799,1775896200113,10000.01,8.8e-05,2]
[420271800,1775896200139,10000.01,8.8e-05,2]
[420271801,1775896200169,5000.01,8.8e-05,2]
[420271802,1775896200195,5000.01,8.8e-05,2]
[420271803,1775896200223,5000.01,8.8e-05,2]
[420271804,1775896200249,5000.01,8.8e-05,2]
[420271805,1775896202182,-300.0,8.799e-05,2]
[420271808,1775896207249,157.0,8.178e-05,3]
[420271809,1775896207774,836.0,8.178e-05,3]
[420271810,1775896208807,-150.0,8.799e-05,2]
[420271811,1775896211783,-1100.7386614,8.8e-05,2]
[420271812,1775896211827,-10000.01,8.8e-05,2]
[420271813,1775896213166,-10000.01,8.8e-05,2]
[420271814,1775896213257,-10000.01,8.8e-05,2]
[420271815,1775896213360,-10000.01,8.8e-05,2]
[420271816,1775896213476,-10000.01,8.8e-05,2]
[420271817,1775896213603,-3953.3809386,8.8e-05,2]
[420271818,1775896213647,-2093.2481228,8.818e-05,2]
[420271819,1775896213711,-406.7518772,8.818e-05,2]
[420271820,1775896213741,-650.0,8.818e-05,2]
[420271821,1775896213776,-836.0,8.905e-05,3]
[420271822,1775896213879,-6214.5062456,8.926e-05,2]
[420271823,1775896213925,-3785.4837544,8.926e-05,2]
[420271824,1775896213972,-299.99,8.926e-05,2]
[420271825,1775896214017,-150.99,8.926e-05,2]
[420271826,1775896214183,-0.02,8.926e-05,2]
[420271827,1775896214248,168.0,8.178e-05,3]
[420271828,1775896214301,-1527.0624912,8.926e-05,2]
[420271829,1775896214380,-1527.1024912,8.926e-05,2]
[420271830,1775896214562,-6945.8050176,8.926e-05,2]
[420271831,1775896214605,-1527.0824912,8.926e-05,2]
[420271832,1775896214702,-1527.1024912,8.926e-05,2]
[420271833,1775896214797,-6945.8050176,8.926e-05,2]
[420271834,1775896214921,-758.07,8.926e-05,2]
[420271835,1775896215058,-7714.8375088,8.926e-05,2]
[420271836,1775896215146,-3596.4175088,8.926e-05,2]
[420271837,1775896215212,-2807.1749824,8.926e-05,2]
[420271838,1775896215221,-500.0,8.933e-05,2]
[420271839,1775896215232,-500.0,8.933e-05,2]
[420271840,1775896215242,-500.0,8.933e-05,2]
[420271841,1775896215251,-500.0,8.933e-05,2]
[420271842,1775896215262,-500.0,8.957e-05,2]
[420271843,1775896215271,-338.3475088,8.957e-05,2]
[420271844,1775896215318,-161.6524912,8.957e-05,2]
[420271845,1775896215328,-500.0,8.957e-05,2]
[420271846,1775896215337,-500.0,8.957e-05,2]
[420271847,1775896215347,-500.0,8.957e-05,2]
[420271848,1775896215356,-500.0,8.957e-05,2]
[420271849,1775896215365,-534.37434852,8.957e-05,2]
[420271850,1775896215375,-500.0,8.957e-05,2]
[420271851,1775896215384,-500.0,8.957e-05,2]
[420271852,1775896215394,-500.0,8.957e-05,2]
[420271853,1775896215404,-500.0,8.957e-05,2]
[420271854,1775896215413,-500.0,8.957e-05,2]
[420271855,1775896215423,-500.0,8.957e-05,2]
[420271856,1775896215432,-500.0,8.957e-05,2]
[420271857,1775896215441,-222.27875565,8.958e-05,2]
[420271858,1775896215451,-500.0,8.958e-05,2]
[420271859,1775896215460,-500.0,8.958e-05,2]
[420271860,1775896215469,-442.74215924,8.958e-05,2]
[420271861,1775896215479,-500.0,8.958e-05,2]
[420271862,1775896215488,-500.0,8.958e-05,2]
[420271863,1775896215497,-1138.96224539,8.958e-05,2]
[420271864,1775896215528,-6403.5924912,8.958e-05,2]
[420271865,1775896215604,-10000.01,8.958e-05,2]
[420271866,1775896215624,-4811.29833991,8.958e-05,2]
[420271867,1775896215633,-5188.71166009,8.959e-05,2]
[420271873,1775896237916,-1227.95874865,8.858e-05,2]
[420271879,1775896241450,-1038.37780694,8.858e-05,2]
[420271880,1775896241471,-5696.66344441,8.858e-05,2]
[420271881,1775896241480,-2500.0,8.859e-05,2]
[420271882,1775896241494,-69047.02302551,8.959e-05,2]
[420271883,1775896241553,-6082.65961916,8.959e-05,2]
[420271884,1775896241712,-306.10710901,8.959e-05,2]
[420271890,1775896242776,-375.25177154,8.959e-05,2]
[420271891,1775896242839,-24748.92102422,8.959e-05,2]
[420271909,1775896245899,-403222.56495463,8.959e-05,2]
[420271910,1775896245938,-682.71705098,8.959e-05,2]
[420271911,1775896245984,-996.69936809,8.959e-05,2]
[420271912,1775896246074,-56149.8029476,8.959e-05,2]
[420271914,1775896267991,8642.282027,7.945e-05,2]
[420271915,1775896393923,401.6,8.51e-05,2]